[Event "Titled Tuesday Blitz May 18 2021"]
[White "Moskalenko, Alexander"]
[Black "Sadhwani, Raunak"]
[WhiteFideId "4155351"]
[BlackFideId "35093487"]
[WhiteElo "2495"]
[BlackElo "2514"]
[Result "1-0"]
[Round "07"]
[TimeControl "180+1"]
[Date "2021.05.18"]
[WhiteClock "0:01:04"]
[BlackClock "0:00:15"]

1. d4 {[%clk 0:03:00]}  c5 {[%clk 0:03:00]} 2. d5 {[%clk 0:02:59]}  e5 {[%clk 0:03:01]} 3. Nc3 {[%clk 0:02:59]}  d6 {[%clk 0:03:01]} 4. e4 {[%clk 0:03:00]}  Be7 {[%clk 0:03:01]} 5. Bb5+ {[%clk 0:02:59]}  Bd7 {[%clk 0:02:57]} 6. Bxd7+ {[%clk 0:02:58]}  Nxd7 {[%clk 0:02:58]} 7. Nf3 {[%clk 0:02:59]}  a6 {[%clk 0:02:58]} 8. a4 {[%clk 0:02:58]}  Ngf6 {[%clk 0:02:53]} 9. O-O {[%clk 0:02:46]}  O-O {[%clk 0:02:51]} 10. a5 {[%clk 0:02:46]}  Ne8 {[%clk 0:02:49]} 11. Nd2 {[%clk 0:02:42]}  Bg5 {[%clk 0:02:48]} 12. Nc4 {[%clk 0:02:37]}  Bxc1 {[%clk 0:02:49]} 13. Qxc1 {[%clk 0:02:37]}  Qe7 {[%clk 0:02:48]} 14. Qd2 {[%clk 0:02:27]}  g6 {[%clk 0:02:46]} 15. Rae1 {[%clk 0:02:27]}  Ng7 {[%clk 0:02:46]} 16. f4 {[%clk 0:02:26]}  f6 {[%clk 0:02:13]} 17. f5 {[%clk 0:02:25]}  g5 {[%clk 0:02:14]} 18. h4 {[%clk 0:02:20]}  g4 {[%clk 0:02:05]} 19. Qh6 {[%clk 0:02:18]}  Kh8 {[%clk 0:01:57]} 20. Re3 {[%clk 0:02:12]}  Rg8 {[%clk 0:01:52]} 21. Rg3 {[%clk 0:02:13]}  Ne8 {[%clk 0:01:52]} 22. Ne3 {[%clk 0:02:13]}  Qg7 {[%clk 0:01:48]} 23. Qxg7+ {[%clk 0:02:13]}  Rxg7 {[%clk 0:01:49]} 24. Rxg4 {[%clk 0:02:13]}  b5 {[%clk 0:01:47]} 25. axb6 {[%clk 0:02:12]}  Nxb6 {[%clk 0:01:47]} 26. Rxg7 {[%clk 0:02:12]}  Kxg7 {[%clk 0:01:48]} 27. g4 {[%clk 0:02:11]}  a5 {[%clk 0:01:47]} 28. Ra1 {[%clk 0:02:10]}  a4 {[%clk 0:01:47]} 29. Ra3 {[%clk 0:02:04]}  h6 {[%clk 0:01:38]} 30. b3 {[%clk 0:02:00]}  axb3 {[%clk 0:01:37]} 31. Rxb3 {[%clk 0:02:01]}  Ra6 {[%clk 0:01:34]} 32. Kf2 {[%clk 0:01:59]}  Nc7 {[%clk 0:01:33]} 33. Nb5 {[%clk 0:01:58]}  Nxb5 {[%clk 0:01:33]} 34. Rxb5 {[%clk 0:01:59]}  Kf7 {[%clk 0:01:33]} 35. Rb1 {[%clk 0:01:56]}  Ke7 {[%clk 0:01:29]} 36. c3 {[%clk 0:01:52]}  Nd7 {[%clk 0:01:29]} 37. Rb7 {[%clk 0:01:45]}  Ra2+ {[%clk 0:01:26]} 38. Kf1 {[%clk 0:01:43]}  Ra1+ {[%clk 0:01:26]} 39. Ke2 {[%clk 0:01:44]}  Ra2+ {[%clk 0:01:22]} 40. Kd3 {[%clk 0:01:43]}  Ra6 {[%clk 0:01:20]} 41. Nc4 {[%clk 0:01:43]}  Kd8 {[%clk 0:01:18]} 42. Kc2 {[%clk 0:01:30]}  Ra2+ {[%clk 0:01:14]} 43. Rb2 {[%clk 0:01:30]}  Ra6 {[%clk 0:01:09]} 44. Rb1 {[%clk 0:01:30]}  Ke7 {[%clk 0:00:48]} 45. Kb2 {[%clk 0:01:16]}  Ra4 {[%clk 0:00:37]} 46. Kb3 {[%clk 0:01:15]}  Ra8 {[%clk 0:00:37]} 47. Rb2 {[%clk 0:01:16]}  Rb8+ {[%clk 0:00:31]} 48. Kc2 {[%clk 0:01:15]}  Ra8 {[%clk 0:00:29]} 49. Rb3 {[%clk 0:01:16]}  Ra2+ {[%clk 0:00:29]} 50. Rb2 {[%clk 0:01:15]}  Ra8 {[%clk 0:00:29]} 51. Rb7 {[%clk 0:01:15]}  Ra6 {[%clk 0:00:29]} 52. Rc7 {[%clk 0:01:12]}  Ra2+ {[%clk 0:00:19]} 53. Kb3 {[%clk 0:01:09]}  Ra1 {[%clk 0:00:18]} 54. Kb2 {[%clk 0:01:07]}  Ra8 {[%clk 0:00:15]} 55. Rxd7+ {[%clk 0:01:04]}  Kxd7 {[%clk 0:00:15]} 56. Nb6+ {[%clk 0:01:04]} 1-0


[Site "https://www.chess.com"]

[Event "Titled Tuesday Blitz May 18 2021"]
[White "Murzin, Volodar"]
[Black "Praggnanandhaa R"]
[WhiteFideId "44155573"]
[BlackFideId "25059530"]
[WhiteElo "2541"]
[BlackElo "2555"]
[Result "0-1"]
[Round "07"]
[TimeControl "180+1"]
[Date "2021.05.18"]
[WhiteClock "0:00:03"]
[BlackClock "0:01:54"]

1. e4 {[%clk 0:03:00]}  e5 {[%clk 0:03:00]} 2. Nf3 {[%clk 0:03:01]}  Nc6 {[%clk 0:03:00]} 3. Bb5 {[%clk 0:03:01]}  a6 {[%clk 0:03:01]} 4. Ba4 {[%clk 0:03:01]}  Bc5 {[%clk 0:03:01]} 5. O-O {[%clk 0:03:00]}  d6 {[%clk 0:03:00]} 6. c3 {[%clk 0:03:00]}  Bd7 {[%clk 0:03:00]} 7. d4 {[%clk 0:02:59]}  Ba7 {[%clk 0:03:00]} 8. Be3 {[%clk 0:02:57]}  Nge7 {[%clk 0:02:58]} 9. Nbd2 {[%clk 0:02:57]}  Ng6 {[%clk 0:02:54]} 10. Re1 {[%clk 0:02:49]}  O-O {[%clk 0:02:53]} 11. Nf1 {[%clk 0:02:43]}  exd4 {[%clk 0:02:53]} 12. cxd4 {[%clk 0:02:42]}  b5 {[%clk 0:02:53]} 13. Bc2 {[%clk 0:02:40]}  Bg4 {[%clk 0:02:53]} 14. Ng3 {[%clk 0:02:02]}  Nh4 {[%clk 0:02:50]} 15. Rc1 {[%clk 0:01:03]}  Bxf3 {[%clk 0:02:26]} 16. gxf3 {[%clk 0:01:02]}  Nxd4 {[%clk 0:02:27]} 17. Kh1 {[%clk 0:00:46]}  Ndxf3 {[%clk 0:02:24]} 18. Re2 {[%clk 0:00:45]}  Qf6 {[%clk 0:02:20]} 19. e5 {[%clk 0:00:28]}  dxe5 {[%clk 0:02:12]} 20. Be4 {[%clk 0:00:23]}  Rad8 {[%clk 0:02:06]} 21. Qc2 {[%clk 0:00:18]}  Bxe3 {[%clk 0:02:06]} 22. fxe3 {[%clk 0:00:17]}  Ng5 {[%clk 0:02:04]} 23. Rf2 {[%clk 0:00:15]}  Qh6 {[%clk 0:02:02]} 24. Bc6 {[%clk 0:00:09]}  Rd6 {[%clk 0:01:58]} 25. e4 {[%clk 0:00:07]}  Nh3 {[%clk 0:01:56]} 26. Re2 {[%clk 0:00:03]}  Nf4 {[%clk 0:01:54]} 27. Rf2 {[%clk 0:00:03]}  Nd3 {[%clk 0:01:54]} 0-1


[Site "https://www.chess.com"]

[Event "Titled Tuesday Blitz May 18 2021"]
[White "Oparin, Grigoriy"]
[Black "Araujo Sanchez, Josue"]
[WhiteFideId "24125890"]
[BlackFideId "6416896"]
[WhiteElo "2628"]
[BlackElo "2140"]
[Result "1-0"]
[Round "07"]
[TimeControl "180+1"]
[Date "2021.05.18"]
[WhiteClock "0:01:50"]
[BlackClock "0:01:48"]

1. b3 {[%clk 0:03:00]}  d5 {[%clk 0:02:58]} 2. Bb2 {[%clk 0:03:00]}  c6 {[%clk 0:02:59]} 3. e3 {[%clk 0:03:00]}  Bf5 {[%clk 0:02:59]} 4. Nf3 {[%clk 0:03:00]}  e6 {[%clk 0:02:59]} 5. d3 {[%clk 0:02:57]}  Nd7 {[%clk 0:02:59]} 6. Nbd2 {[%clk 0:02:57]}  Ngf6 {[%clk 0:02:59]} 7. Qe2 {[%clk 0:02:54]}  h6 {[%clk 0:02:59]} 8. h3 {[%clk 0:02:53]}  Bh7 {[%clk 0:02:59]} 9. g4 {[%clk 0:02:54]}  Bd6 {[%clk 0:02:56]} 10. Rg1 {[%clk 0:02:52]}  Qe7 {[%clk 0:02:54]} 11. a3 {[%clk 0:02:51]}  e5 {[%clk 0:02:53]} 12. h4 {[%clk 0:02:43]}  e4 {[%clk 0:02:38]} 13. dxe4 {[%clk 0:02:42]}  Nxe4 {[%clk 0:02:37]} 14. Bxg7 {[%clk 0:02:35]}  Rg8 {[%clk 0:02:37]} 15. Bb2 {[%clk 0:02:36]}  Ne5 {[%clk 0:02:29]} 16. Nxe4 {[%clk 0:02:27]}  Bxe4 {[%clk 0:02:27]} 17. Nxe5 {[%clk 0:02:09]}  Bxe5 {[%clk 0:02:27]} 18. c3 {[%clk 0:02:09]}  Qxh4 {[%clk 0:02:25]} 19. O-O-O {[%clk 0:01:54]}  Qh2 {[%clk 0:02:12]} 20. Bg2 {[%clk 0:01:54]}  Bxg2 {[%clk 0:02:01]} 21. f4 {[%clk 0:01:54]}  Rxg4 {[%clk 0:01:49]} 22. Qxg4 {[%clk 0:01:50]}  Be4 {[%clk 0:01:48]} 23. Rd2 {[%clk 0:01:50]} 1-0


[Site "https://www.chess.com"]

[Event "Titled Tuesday Blitz May 18 2021"]
[White "Sonis, Francesco"]
[Black "Erigaisi Arjun"]
[WhiteFideId "895733"]
[BlackFideId "35009192"]
[WhiteElo "2373"]
[BlackElo "2609"]
[Result "0-1"]
[Round "07"]
[TimeControl "180+1"]
[Date "2021.05.18"]
[WhiteClock "0:00:15"]
[BlackClock "0:01:02"]

1. d4 {[%clk 0:03:00]}  e6 {[%clk 0:02:59]} 2. c4 {[%clk 0:03:01]}  d5 {[%clk 0:02:59]} 3. Nc3 {[%clk 0:03:01]}  c6 {[%clk 0:03:00]} 4. Nf3 {[%clk 0:02:57]}  Nf6 {[%clk 0:03:00]} 5. Bg5 {[%clk 0:02:57]}  h6 {[%clk 0:03:00]} 6. Bh4 {[%clk 0:02:55]}  dxc4 {[%clk 0:03:00]} 7. e4 {[%clk 0:02:55]}  g5 {[%clk 0:03:01]} 8. Bg3 {[%clk 0:02:55]}  b5 {[%clk 0:03:01]} 9. Qc2 {[%clk 0:02:54]}  Bb7 {[%clk 0:03:00]} 10. Rd1 {[%clk 0:02:53]}  Nbd7 {[%clk 0:02:59]} 11. h4 {[%clk 0:02:53]}  g4 {[%clk 0:02:54]} 12. Ne5 {[%clk 0:02:53]}  Nh5 {[%clk 0:02:52]} 13. Nxd7 {[%clk 0:02:19]}  Nxg3 {[%clk 0:02:50]} 14. fxg3 {[%clk 0:02:13]}  Qxd7 {[%clk 0:02:49]} 15. Be2 {[%clk 0:02:11]}  h5 {[%clk 0:02:19]} 16. e5 {[%clk 0:02:04]}  O-O-O {[%clk 0:02:14]} 17. O-O {[%clk 0:01:55]}  c5 {[%clk 0:02:12]} 18. a4 {[%clk 0:01:54]}  a6 {[%clk 0:01:56]} 19. axb5 {[%clk 0:01:52]}  axb5 {[%clk 0:01:57]} 20. Kh1 {[%clk 0:01:25]}  cxd4 {[%clk 0:01:54]} 21. Nxb5 {[%clk 0:01:24]}  Qxb5 {[%clk 0:01:51]} 22. Bxc4 {[%clk 0:01:24]}  Qc6 {[%clk 0:01:44]} 23. Rxf7 {[%clk 0:01:23]}  d3 {[%clk 0:01:44]} 24. Qd2 {[%clk 0:00:58]}  Bh6 {[%clk 0:01:36]} 25. Qf2 {[%clk 0:00:49]}  Qxc4 {[%clk 0:01:32]} 26. Ra1 {[%clk 0:00:45]}  d2 {[%clk 0:01:13]} 27. Kh2 {[%clk 0:00:36]}  d1=Q {[%clk 0:01:10]} 28. Qa7 {[%clk 0:00:34]}  Qc6 {[%clk 0:01:03]} 29. Rxb7 {[%clk 0:00:19]}  Qxb7 {[%clk 0:01:04]} 30. Qc5+ {[%clk 0:00:19]}  Kb8 {[%clk 0:01:03]} 31. Rxd1 {[%clk 0:00:17]}  Rxd1 {[%clk 0:01:04]} 32. b4 {[%clk 0:00:16]}  Rc8 {[%clk 0:01:03]} 33. Qf2 {[%clk 0:00:15]}  Rcc1 {[%clk 0:01:02]} 0-1


[Site "https://www.chess.com"]

[Event "Titled Tuesday Blitz May 18 2021"]
[White "Tari, Aryan"]
[Black "Shahaliyev, Ismayil"]
[WhiteFideId "1510045"]
[BlackFideId "13406388"]
[WhiteElo "2656"]
[BlackElo "2105"]
[Result "1-0"]
[Round "07"]
[TimeControl "180+1"]
[Date "2021.05.18"]
[WhiteClock "0:00:13"]
[BlackClock "0:00:07"]

1. d4 {[%clk 0:03:00]}  Nf6 {[%clk 0:02:59]} 2. Nf3 {[%clk 0:02:59]}  e6 {[%clk 0:02:59]} 3. Bf4 {[%clk 0:03:00]}  d5 {[%clk 0:02:59]} 4. e3 {[%clk 0:02:58]}  Bd6 {[%clk 0:03:00]} 5. Nbd2 {[%clk 0:02:59]}  Bxf4 {[%clk 0:03:00]} 6. exf4 {[%clk 0:02:57]}  Nbd7 {[%clk 0:03:00]} 7. Bd3 {[%clk 0:02:57]}  c5 {[%clk 0:03:01]} 8. c3 {[%clk 0:02:55]}  O-O {[%clk 0:03:00]} 9. O-O {[%clk 0:02:53]}  a5 {[%clk 0:03:01]} 10. a4 {[%clk 0:02:45]}  b6 {[%clk 0:03:00]} 11. Ne5 {[%clk 0:02:44]}  Ba6 {[%clk 0:02:56]} 12. Bxa6 {[%clk 0:02:39]}  Rxa6 {[%clk 0:02:57]} 13. Qe2 {[%clk 0:02:39]}  Ra8 {[%clk 0:02:57]} 14. h4 {[%clk 0:02:31]}  Ne8 {[%clk 0:02:46]} 15. h5 {[%clk 0:02:29]}  Nd6 {[%clk 0:02:37]} 16. h6 {[%clk 0:02:29]}  g6 {[%clk 0:02:37]} 17. dxc5 {[%clk 0:01:43]}  bxc5 {[%clk 0:02:35]} 18. Nb3 {[%clk 0:01:44]}  c4 {[%clk 0:01:48]} 19. Nxd7 {[%clk 0:01:36]}  Qxd7 {[%clk 0:01:47]} 20. Nd4 {[%clk 0:01:37]}  Ne4 {[%clk 0:01:38]} 21. Rfe1 {[%clk 0:01:23]}  Ra6 {[%clk 0:01:29]} 22. Qe3 {[%clk 0:01:15]}  Qc8 {[%clk 0:01:13]} 23. Re2 {[%clk 0:01:08]}  f6 {[%clk 0:01:10]} 24. Qh3 {[%clk 0:00:59]}  Kf7 {[%clk 0:01:09]} 25. Rae1 {[%clk 0:00:58]}  Nc5 {[%clk 0:00:49]} 26. f5 {[%clk 0:00:48]}  e5 {[%clk 0:00:44]} 27. Qf3 {[%clk 0:00:41]}  Ne4 {[%clk 0:00:23]} 28. Rxe4 {[%clk 0:00:25]}  dxe4 {[%clk 0:00:23]} 29. Qxe4 {[%clk 0:00:26]}  Rd8 {[%clk 0:00:18]} 30. Ne6 {[%clk 0:00:19]}  Rxe6 {[%clk 0:00:19]} 31. fxe6+ {[%clk 0:00:19]}  Qxe6 {[%clk 0:00:20]} 32. f4 {[%clk 0:00:19]}  Qd5 {[%clk 0:00:19]} 33. fxe5 {[%clk 0:00:14]}  Qxe4 {[%clk 0:00:09]} 34. Rxe4 {[%clk 0:00:15]}  fxe5 {[%clk 0:00:09]} 35. Rxc4 {[%clk 0:00:14]}  g5 {[%clk 0:00:04]} 36. Rc5 {[%clk 0:00:14]}  Kf6 {[%clk 0:00:05]} 37. Rxa5 {[%clk 0:00:14]}  Kf5 {[%clk 0:00:05]} 38. Ra7 {[%clk 0:00:12]}  Rd6 {[%clk 0:00:06]} 39. Rxh7 {[%clk 0:00:12]}  Kf4 {[%clk 0:00:06]} 40. Rf7+ {[%clk 0:00:12]}  Kg3 {[%clk 0:00:07]} 41. h7 {[%clk 0:00:12]}  Rh6 {[%clk 0:00:07]} 42. Rf3+ {[%clk 0:00:12]}  Kg4 {[%clk 0:00:07]} 43. Rh3 {[%clk 0:00:13]} 1-0


[Site "https://www.chess.com"]

[Event "Titled Tuesday Blitz May 18 2021"]
[White "Van Foreest, Jorden"]
[Black "Bluebaum, Matthias"]
[WhiteFideId "1039784"]
[BlackFideId "24651516"]
[WhiteElo "2622"]
[BlackElo "2685"]
[Result "1/2-1/2"]
[Round "07"]
[TimeControl "180+1"]
[Date "2021.05.18"]
[WhiteClock "0:00:16"]
[BlackClock "0:00:21"]

1. e4 {[%clk 0:02:33]}  e6 {[%clk 0:02:59]} 2. d4 {[%clk 0:02:31]}  d5 {[%clk 0:02:59]} 3. Nc3 {[%clk 0:02:31]}  Nf6 {[%clk 0:02:59]} 4. Bg5 {[%clk 0:02:30]}  dxe4 {[%clk 0:02:59]} 5. Nxe4 {[%clk 0:02:30]}  Be7 {[%clk 0:03:00]} 6. Bxf6 {[%clk 0:02:30]}  gxf6 {[%clk 0:03:01]} 7. Bc4 {[%clk 0:02:27]}  f5 {[%clk 0:02:52]} 8. Ng3 {[%clk 0:02:27]}  c5 {[%clk 0:02:47]} 9. d5 {[%clk 0:02:26]}  b5 {[%clk 0:02:47]} 10. Bxb5+ {[%clk 0:02:26]}  Kf8 {[%clk 0:02:43]} 11. Bc4 {[%clk 0:02:16]}  Bb7 {[%clk 0:02:38]} 12. dxe6 {[%clk 0:02:13]}  Qxd1+ {[%clk 0:02:00]} 13. Rxd1 {[%clk 0:02:13]}  Bxg2 {[%clk 0:01:59]} 14. f3 {[%clk 0:01:38]}  Nc6 {[%clk 0:01:50]} 15. exf7 {[%clk 0:01:26]}  Bxh1 {[%clk 0:01:47]} 16. Nxh1 {[%clk 0:01:27]}  Ne5 {[%clk 0:01:45]} 17. Be6 {[%clk 0:01:26]}  Rd8 {[%clk 0:01:42]} 18. Rxd8+ {[%clk 0:01:25]}  Bxd8 {[%clk 0:01:43]} 19. Ng3 {[%clk 0:01:23]}  Nxf7 {[%clk 0:01:42]} 20. Nxf5 {[%clk 0:01:21]}  Bc7 {[%clk 0:01:39]} 21. Ne2 {[%clk 0:01:17]}  Ng5 {[%clk 0:01:14]} 22. Bd5 {[%clk 0:01:17]}  Bxh2 {[%clk 0:01:14]} 23. Kf2 {[%clk 0:01:07]}  Bc7 {[%clk 0:01:05]} 24. f4 {[%clk 0:01:07]}  Nf7 {[%clk 0:01:05]} 25. Kf3 {[%clk 0:01:05]}  h5 {[%clk 0:01:02]} 26. Nh4 {[%clk 0:01:02]}  Rh6 {[%clk 0:01:01]} 27. Ng3 {[%clk 0:01:02]}  Nd6 {[%clk 0:00:51]} 28. c4 {[%clk 0:00:57]}  Bd8 {[%clk 0:00:50]} 29. Nhf5 {[%clk 0:00:50]}  Nxf5 {[%clk 0:00:50]} 30. Nxf5 {[%clk 0:00:51]}  Rg6 {[%clk 0:00:49]} 31. a3 {[%clk 0:00:28]}  Bc7 {[%clk 0:00:40]} 32. Ne3 {[%clk 0:00:14]}  h4 {[%clk 0:00:40]} 33. Ng4 {[%clk 0:00:13]}  Ke7 {[%clk 0:00:32]} 34. b4 {[%clk 0:00:13]}  Bd6 {[%clk 0:00:24]} 35. f5 {[%clk 0:00:13]}  Rg5 {[%clk 0:00:22]} 36. f6+ {[%clk 0:00:13]}  Kf8 {[%clk 0:00:23]} 37. bxc5 {[%clk 0:00:11]}  Bxc5 {[%clk 0:00:17]} 38. Kf4 {[%clk 0:00:11]}  Rh5 {[%clk 0:00:18]} 39. Ke4 {[%clk 0:00:07]}  h3 {[%clk 0:00:17]} 40. Ne5 {[%clk 0:00:06]}  Rxe5+ {[%clk 0:00:02]} 41. Kxe5 {[%clk 0:00:07]}  Bxa3 {[%clk 0:00:03]} 42. Kd4 {[%clk 0:00:05]}  Bb2+ {[%clk 0:00:02]} 43. Ke3 {[%clk 0:00:03]}  Bxf6 {[%clk 0:00:03]} 44. c5 {[%clk 0:00:04]}  h2 {[%clk 0:00:03]} 45. Kf2 {[%clk 0:00:04]}  Bd4+ {[%clk 0:00:02]} 46. Kg2 {[%clk 0:00:04]}  Be5 {[%clk 0:00:03]} 47. c6 {[%clk 0:00:04]}  Ke7 {[%clk 0:00:04]} 48. Ba2 {[%clk 0:00:04]}  Kd6 {[%clk 0:00:04]} 49. Kh1 {[%clk 0:00:04]}  Kxc6 {[%clk 0:00:05]} 50. Bg8 {[%clk 0:00:05]}  Kc5 {[%clk 0:00:06]} 51. Ba2 {[%clk 0:00:05]}  Kd4 {[%clk 0:00:07]} 52. Bg8 {[%clk 0:00:06]}  Bc7 {[%clk 0:00:08]} 53. Ba2 {[%clk 0:00:06]}  a5 {[%clk 0:00:08]} 54. Bg8 {[%clk 0:00:07]}  Kc3 {[%clk 0:00:09]} 55. Ba2 {[%clk 0:00:07]}  Kb2 {[%clk 0:00:10]} 56. Bg8 {[%clk 0:00:08]}  a4 {[%clk 0:00:11]} 57. Bd5 {[%clk 0:00:09]}  Kc3 {[%clk 0:00:11]} 58. Bg8 {[%clk 0:00:09]}  Bd6 {[%clk 0:00:12]} 59. Ba2 {[%clk 0:00:10]}  a3 {[%clk 0:00:13]} 60. Bg8 {[%clk 0:00:10]}  Kc2 {[%clk 0:00:14]} 61. Bh7+ {[%clk 0:00:10]}  Kb2 {[%clk 0:00:14]} 62. Bg8 {[%clk 0:00:10]}  Kb1 {[%clk 0:00:15]} 63. Bh7+ {[%clk 0:00:10]}  Ka1 {[%clk 0:00:14]} 64. Bg8 {[%clk 0:00:11]}  a2 {[%clk 0:00:15]} 65. Bxa2 {[%clk 0:00:11]}  Kxa2 {[%clk 0:00:16]} 66. Kg2 {[%clk 0:00:11]}  Kb3 {[%clk 0:00:17]} 67. Kh1 {[%clk 0:00:12]}  Kc4 {[%clk 0:00:18]} 68. Kg2 {[%clk 0:00:13]}  Kd5 {[%clk 0:00:18]} 69. Kh1 {[%clk 0:00:14]}  Ke4 {[%clk 0:00:19]} 70. Kg2 {[%clk 0:00:15]}  Kf4 {[%clk 0:00:20]} 71. Kh1 {[%clk 0:00:16]}  Kg3 {[%clk 0:00:21]} 1/2-1/2


[Site "https://www.chess.com"]

[Event "Titled Tuesday Blitz May 18 2021"]
[White "Abdrlauf, Elham"]
[Black "Naroditsky, Daniel"]
[WhiteFideId "1533533"]
[BlackFideId "2026961"]
[WhiteElo "2326"]
[BlackElo "2608"]
[Result "0-1"]
[Round "08"]
[TimeControl "180+1"]
[Date "2021.05.18"]
[WhiteClock "0:00:02"]
[BlackClock "0:00:41"]

1. e4 {[%clk 0:03:00]}  c5 {[%clk 0:02:56]} 2. Nf3 {[%clk 0:03:00]}  d6 {[%clk 0:02:55]} 3. d4 {[%clk 0:03:00]}  cxd4 {[%clk 0:02:54]} 4. Nxd4 {[%clk 0:03:01]}  Nf6 {[%clk 0:02:55]} 5. Nc3 {[%clk 0:03:01]}  a6 {[%clk 0:02:54]} 6. Be3 {[%clk 0:03:02]}  e5 {[%clk 0:02:54]} 7. Nf3 {[%clk 0:03:01]}  Be7 {[%clk 0:02:51]} 8. Bc4 {[%clk 0:02:59]}  O-O {[%clk 0:02:51]} 9. O-O {[%clk 0:02:57]}  Nc6 {[%clk 0:02:50]} 10. a3 {[%clk 0:02:55]}  Be6 {[%clk 0:02:49]} 11. Qd3 {[%clk 0:02:27]}  Rc8 {[%clk 0:02:47]} 12. Bb3 {[%clk 0:02:25]}  Na5 {[%clk 0:02:43]} 13. Ba2 {[%clk 0:01:48]}  Nc4 {[%clk 0:02:36]} 14. Bc1 {[%clk 0:01:34]}  b5 {[%clk 0:02:35]} 15. Rd1 {[%clk 0:01:25]}  Qb6 {[%clk 0:02:34]} 16. Qe2 {[%clk 0:01:25]}  h6 {[%clk 0:02:31]} 17. Bb3 {[%clk 0:01:16]}  Qb7 {[%clk 0:02:30]} 18. Nh4 {[%clk 0:01:08]}  Rfd8 {[%clk 0:02:23]} 19. Nf5 {[%clk 0:01:03]}  Bxf5 {[%clk 0:02:20]} 20. exf5 {[%clk 0:01:04]}  d5 {[%clk 0:02:19]} 21. Bxc4 {[%clk 0:01:00]}  Rxc4 {[%clk 0:02:19]} 22. Qxe5 {[%clk 0:00:57]}  Bd6 {[%clk 0:02:20]} 23. Qe2 {[%clk 0:00:47]}  d4 {[%clk 0:02:17]} 24. Na2 {[%clk 0:00:45]}  Re8 {[%clk 0:02:17]} 25. Qd3 {[%clk 0:00:38]}  Ng4 {[%clk 0:02:18]} 26. h3 {[%clk 0:00:35]}  Bh2+ {[%clk 0:02:04]} 27. Kf1 {[%clk 0:00:34]}  Ne5 {[%clk 0:02:05]} 28. Qe2 {[%clk 0:00:32]}  Qc8 {[%clk 0:01:54]} 29. Nb4 {[%clk 0:00:07]}  a5 {[%clk 0:01:55]} 30. Nd3 {[%clk 0:00:07]}  Rxc2 {[%clk 0:01:46]} 31. Qe4 {[%clk 0:00:06]}  Nc4 {[%clk 0:01:12]} 32. Qg4 {[%clk 0:00:03]}  Ne3+ {[%clk 0:00:50]} 33. fxe3 {[%clk 0:00:02]}  dxe3 {[%clk 0:00:51]} 34. Re1 {[%clk 0:00:02]}  h5 {[%clk 0:00:40]} 35. Qxh5 {[%clk 0:00:01]}  Qc4 {[%clk 0:00:41]} 36. Rxe3 {[%clk 0:00:01]}  Rxe3 {[%clk 0:00:40]} 37. Bxe3 {[%clk 0:00:01]}  Qxd3+ {[%clk 0:00:41]} 38. Ke1 {[%clk 0:00:02]}  Qxe3+ {[%clk 0:00:41]} 39. Kd1 {[%clk 0:00:02]}  Qd2# {[%clk 0:00:41]} 0-1


[Site "https://www.chess.com"]

[Event "Titled Tuesday Blitz May 18 2021"]
[White "Chigaev, Maksim"]
[Black "Deac, Bogdan-Daniel"]
[WhiteFideId "4108116"]
[BlackFideId "1226380"]
[WhiteElo "2646"]
[BlackElo "2605"]
[Result "0-1"]
[Round "08"]
[TimeControl "180+1"]
[Date "2021.05.18"]
[WhiteClock "0:00:04"]
[BlackClock "0:00:05"]

1. e4 {[%clk 0:02:59]}  e5 {[%clk 0:02:58]} 2. Nf3 {[%clk 0:02:56]}  Nf6 {[%clk 0:02:59]} 3. Nc3 {[%clk 0:02:47]}  Nc6 {[%clk 0:02:58]} 4. h3 {[%clk 0:02:48]}  g6 {[%clk 0:02:49]} 5. d4 {[%clk 0:02:44]}  exd4 {[%clk 0:02:48]} 6. Nxd4 {[%clk 0:02:44]}  Bg7 {[%clk 0:02:48]} 7. Nxc6 {[%clk 0:02:43]}  bxc6 {[%clk 0:02:48]} 8. Bd3 {[%clk 0:02:44]}  O-O {[%clk 0:02:47]} 9. O-O {[%clk 0:02:44]}  Re8 {[%clk 0:02:29]} 10. Bd2 {[%clk 0:02:36]}  d5 {[%clk 0:02:26]} 11. Re1 {[%clk 0:02:36]}  Rb8 {[%clk 0:02:03]} 12. Rb1 {[%clk 0:02:29]}  dxe4 {[%clk 0:01:57]} 13. Nxe4 {[%clk 0:02:20]}  Nxe4 {[%clk 0:01:56]} 14. Bxe4 {[%clk 0:02:21]}  Rxb2 {[%clk 0:01:47]} 15. Rxb2 {[%clk 0:01:58]}  Bxb2 {[%clk 0:01:47]} 16. Bxc6 {[%clk 0:01:56]}  Rxe1+ {[%clk 0:01:16]} 17. Qxe1 {[%clk 0:01:57]}  Be6 {[%clk 0:01:16]} 18. a4 {[%clk 0:01:51]}  Qd6 {[%clk 0:01:12]} 19. Bc3 {[%clk 0:01:39]}  Qa3 {[%clk 0:00:26]} 20. Bxb2 {[%clk 0:01:14]}  Qxb2 {[%clk 0:00:26]} 21. Qd2 {[%clk 0:00:37]}  Qa1+ {[%clk 0:00:21]} 22. Kh2 {[%clk 0:00:35]}  Qe5+ {[%clk 0:00:21]} 23. g3 {[%clk 0:00:31]}  a5 {[%clk 0:00:19]} 24. c3 {[%clk 0:00:25]}  Kg7 {[%clk 0:00:15]} 25. f4 {[%clk 0:00:20]}  Qc5 {[%clk 0:00:15]} 26. Bb5 {[%clk 0:00:12]}  c6 {[%clk 0:00:15]} 27. Bf1 {[%clk 0:00:10]}  Bb3 {[%clk 0:00:14]} 28. g4 {[%clk 0:00:06]}  Bxa4 {[%clk 0:00:13]} 29. f5 {[%clk 0:00:06]}  Qe5+ {[%clk 0:00:10]} 30. Kg1 {[%clk 0:00:06]}  c5 {[%clk 0:00:10]} 31. Bg2 {[%clk 0:00:05]}  Bb3 {[%clk 0:00:08]} 32. h4 {[%clk 0:00:05]}  h6 {[%clk 0:00:06]} 33. g5 {[%clk 0:00:04]}  hxg5 {[%clk 0:00:06]} 34. fxg6 {[%clk 0:00:05]}  gxh4 {[%clk 0:00:05]} 35. gxf7 {[%clk 0:00:06]}  Bxf7 {[%clk 0:00:05]} 36. Qf2 {[%clk 0:00:05]}  Qg3 {[%clk 0:00:05]} 37. Qxc5 {[%clk 0:00:04]}  h3 {[%clk 0:00:05]} 38. Qd4+ {[%clk 0:00:04]}  Kg8 {[%clk 0:00:05]} 39. Qd8+ {[%clk 0:00:04]}  Kh7 {[%clk 0:00:05]} 0-1


[Site "https://www.chess.com"]